Cogmind - Beta 14 @@@ ROGUE MODE // 2024.12.05 @ 19:33:22 Player: Shimmyarah Result: Destroyed by FG-56M(R) with Subdweller Machine Gun Performance ------------- Evolutions (0) 0 Regions Visited (2) 400 Robots Destroyed (37) 185 Value Destroyed (602) 602 Prototype IDs (0) 0 Alien Tech Used (0) 0 Bonus (0) 0 TOTAL SCORE: 1187 Bonus ------- None Cogmind --------- Core Integrity 0/250 Matter 170/300 Energy 250/250 System Corruption 0% Temperature Cool (0) Movement Treading (240) Ox1 Location -10/Subcaves Parts ------- > --- POWER (1) -------- Ion Engine > --- PROPULSION (2) --- Improved Treads Improved Treads > --- UTILITY (2) ------ High-capacity Storage Unit Seismic Detector > --- WEAPON (2) ------- Battle Rifle Subdweller Machine Gun > --- INVENTORY (20) --- Light Ion Engine Light Ion Engine Subdweller Power Source Light Treads Flight Unit Flight Unit Flight Unit Humpback Structural Scanner Propulsion Shielding Propulsion Shielding Light Armor Plating Light Armor Plating Tractor Beam Heavy Riot Gun Subdweller Laser Battle Rifle Grenade Launcher Mining Laser Peak State ------------ > --- POWER ------------ Ion Engine > --- PROPULSION ------- Improved Treads Improved Treads > --- UTILITY ---------- High-capacity Storage Unit Improved Terrain Scanner > --- WEAPON ----------- Assault Rifle Assault Rifle > --- INVENTORY -------- Light Ion Engine Light Ion Engine Light Treads Light Treads Light Treads Flight Unit Flight Unit Flight Unit Flight Unit Medium Storage Unit Large Storage Unit Structural Scanner Seismic Detector Propulsion Shielding Propulsion Shielding Tractor Beam Medium Laser Assault Rifle Grenade Launcher Mining Laser [Rating: 13] Favorites ----------- Power Ion Engine Engine Ion Engine Propulsion Improved Treads Treads Improved Treads Leg Aluminum Leg Utility Small Storage Unit Device Improved Terrain Scanner Storage Small Storage Unit Protection Light Armor Plating Weapon Assault Rifle Energy Gun Medium Laser Ballistic Gun Assault Rifle Special Weapon Mining Laser Build | -11 -10 -10 ------- Run | Yrd Mat Sub Slots Evolved . | . . . Power . | . . . Propulsion . | . . . Utility . | . . . Weapon . | . . . Parts Attached 37 | 2 19 16 Power 1 | . 1 . Engine 1 | . 1 . Core . | . . . Reactor . | . . . Propulsion 8 | . 6 2 Treads 8 | . 6 2 Leg . | . . . Wheel . | . . . Hover . | . . . Flight . | . . . Utility 15 | 2 6 7 Device 8 | 2 3 3 Storage 3 | . 3 . Processor . | . . . Hackware . | . . . Protection 4 | . . 4 Artifact . | . . . Weapon 13 | . 6 7 Energy Gun 1 | . . 1 Energy Cannon . | . . . Ballistic Gun 9 | . 4 5 Ballistic Cannon . | . . . Launcher . | . . . Special Weapon 3 | . 2 1 Impact Weapon . | . . . Slashing Weapon . | . . . Piercing Weapon . | . . . Special Melee Weapon . | . . . Unidentified Prototypes . | . . . Parts Lost 5 | . . 5 Power . | . . . Propulsion 2 | . . 2 Utility . | . . . Weapon 3 | . . 3 Highest Loss Streak 4 | . . 4 To Critical Strikes . | . . . Average Slot Usage (%) 99 | . 99 99 Engine 14 | . 14 14 Treads 27 | . 27 27 Device 10 | . 14 3 Storage 14 | . 14 14 Protection 3 | . . 10 Ballistic Gun 26 | . 27 25 Special Weapon 1 | . . 2 Peak Build Rating 13 | 10 13 13 Average Rating 10 | 6 10 11 On Entrance 9 | 6 8 13 Naked Turns . | . . . Heaviest Build 54 | 13 50 54 Greatest Support 46 | 20 46 46 Greatest Overweight (x) 4 | . 4 1 Average Overweight (x) . | . . 1 Largest Inventory Capacity 20 | 8 20 20 Average Capacity 13 | 8 12 20 Most Carried 20 | 8 20 20 Average Carried 13 | 7 11 19 Final Capacity 20 | 8 20 20 Final Carried 20 | 8 20 20 Class Distribution -------------------- 100% | Mutant Dominant Class ---------------- Mutant | -10/Materials Mutant | -10/Subcaves Resources | -11 -10 -10 ----------- Run | Yrd Mat Sub Matter Collected 875 | 271 383 221 Remotely . | . . . Salvage Created 1007 | 330 506 171 Parts 78 | 33 38 7 Haulers Intercepted 2 | . 2 . Recyclers Shooed 3 | 1 2 . Parts Field Recycled . | . . . Retrieved Matter . | . . . Parts Self-Destructed 1 | . . 1 Prevented . | . . . Kills | -11 -10 -10 ------- Run | Yrd Mat Sub Combat Hostiles Destroyed 14 | . 10 4 Guns 14 | . 10 4 Classes Destroyed 10 | 3 6 1 Worker 6 | 4 2 . Builder 1 | . 1 . Tunneler 9 | 9 . . Hauler 2 | . 2 . Recycler 1 | 1 . . Operator 2 | . 2 . Watcher 2 | . 2 . Swarmer 3 | . 3 . Grunt 7 | . 7 . Subdweller 4 | . . 4 Best Kill Streak 3 | 3 3 1 Combat Bots Only 3 | . 3 1 Max Kills in Single Turn 2 | 2 1 1 Gunslinging . | . . . Exploded . | . . . Melee . | . . . Uniques/NPCs Destroyed . | . . . Combat | -11 -10 -10 -------- Run | Yrd Mat Sub Hostile Shots Fired 105 | . 53 52 Missed 32 | . 20 12 Damage Taken 1349 | . 387 962 Core 254 | . 98 156 Absorbed by Shields . | . . . Core Remaining (%) 100 | 100 . . Volleys Fired 110 | 17 64 29 Largest 2 | 2 2 2 Hottest 100 | 70 100 100 Shots Fired 210 | 34 124 52 Gun 202 | 34 120 48 Cannon . | . . . Launcher . | . . . Special 8 | . 4 4 Kinetic 174 | 17 120 37 Thermal 36 | 17 4 15 Explosive . | . . . Electromagnetic . | . . . Robot Hit Streak 15 | 4 10 15 Robot Miss Streak 7 | 2 7 1 Penetration Max . | . . . Secondary Targets 3 | . 2 1 Max Gunslinging Chain 1 | . 1 1 Shots Hit Robots 133 | 19 70 44 Core Hits 50 | 15 28 7 Critical Kills 2 | . 2 . Critical Parts Destroyed . | . . . Critical Strikes 3 | 1 2 . Burn 1 | 1 . . Destroy 2 | . 2 . Melee Attacks . | . . . Impact . | . . . Slashing . | . . . Piercing . | . . . Sneak Attacks . | . . . Combat Hostiles . | . . . Follow-up Attacks . | . . . Damage Inflicted 1771 | 246 915 610 Guns 1743 | 246 887 610 Cannons . | . . . Explosions . | . . . Melee . | . . . Ramming 28 | . 28 . Kinetic 1517 | 145 887 485 Thermal 226 | 101 . 125 Explosive . | . . . Electromagnetic . | . . . Impact . | . . . Slashing . | . . . Piercing . | . . . Highest Corruption . | . . . Average Corruption . | . . . Corruption Purged . | . . . Corruption Blocked . | . . . Overload Shots . | . . . Overflow Damage . | . . . Projectiles . | . . . Explosions . | . . . Melee . | . . . Knockbacks . | . . . Impact . | . . . Kinetic . | . . . Secondary . | . . . Self-Inflicted Damage . | . . . Shots . | . . . Rammed 7 | . 7 . Targets Rammed 9 | . 9 . Kicked . | . . . Crushed 2 | . 2 . Highest Temperature 27 | 27 23 1 Average Temperature 9 | 9 9 1 Received Heat Transfer 447 | . 216 231 Siege Activations . | . . . Robots Corrupted . | . . . Combat Hostiles . | . . . Parts Fried . | . . . Impact Corruptions . | . . . Robots Melted . | . . . Combat Hostiles . | . . . Parts Melted 2 | 1 . 1 Heat Transferred 740 | 370 . 370 Parts Sabotaged . | . . . Parts Stolen . | . . . Parts Stripped . | . . . Power Chain Reactions . | . . . Alert | -11 -10 -10 ------- Run | Yrd Mat Sub Peak Influence 173 | 45 173 . Initial 16 | . 16 . Average 24 | 12 27 . Maximum Alert Level . | . . . Low Security (%) 100 | 100 100 . Level 1 . | . . . Level 2 . | . . . Level 3 . | . . . Level 4 . | . . . Level 5 . | . . . High Security . | . . . Max Security . | . . . Squads Dispatched 2 | . 2 . Investigation . | . . . Extermination . | . . . Reinforcement 2 | . 2 . Assault . | . . . Garrison . | . . . Intercept . | . . . Searches Triggered . | . . . Construction Impeded . | . . . Haulers Reinforced . | . . . Active Scanning Responses . | . . . Cargo Convoy Interrupts . | . . . Stealth | -11 -10 -10 --------- Run | Yrd Mat Sub Distress Signals 2 | . 2 . Communications Jammed . | . . . Distress Signals . | . . . Times Spotted 31 | . 25 6 Peak Tracking Total 4 | . 4 2 Tactical Retreats 1 | . 1 . Traps | -11 -10 -10 ------- Run | Yrd Mat Sub Traps Triggered 2 | . 2 . Indirectly . | . . . Trap Hack Attempts . | . . . Triggered . | . . . Disarmed . | . . . Reprogrammed . | . . . Reused . | . . . Traps Extracted . | . . . Installed . | . . . Triggered . | . . . Machines | -11 -10 -10 ---------- Run | Yrd Mat Sub Machines Disabled . | . . . Max in Single Turn . | . . . Machines Repaired . | . . . Machines Dismantled . | . . . Machines Sabotaged . | . . . Overloaded Fab Kills . | . . . Hacking | -11 -10 -10 --------- Run | Yrd Mat Sub Machines Accessed 2 | . 2 . Terminals . | . . . Fabricators . | . . . Repair Stations . | . . . Recycling Units 2 | . 2 . Scanalyzers . | . . . Garrison Access . | . . . Total Hacks 8 | . 8 . Successful 5 | . 5 . Failed 3 | . 3 . Catastrophic . | . . . Database Lockouts . | . . . Manual 3 | . 3 . Terminals . | . . . Fabricators . | . . . Repair Stations . | . . . Recycling Units 8 | . 8 . Scanalyzers . | . . . Garrison Access . | . . . Terminal Hacks . | . . . Fabricator Hacks . | . . . Repair Station Hacks . | . . . Recycling Unit Hacks 3 | . 3 . Retrieve Matter 1 | . 1 . Retrieve Components 2 | . 2 . Scanalyzer . | . . . Garrison Access Hacks . | . . . Unauthorized Hacks 2 | . 2 . Terminals . | . . . Fabricators . | . . . Repair Stations . | . . . Recycling Units 2 | . 2 . Reject 2 | . 2 . Scanalyzers . | . . . Garrison Access . | . . . Data Cores Recovered . | . . . Used . | . . . Hacking Detections 1 | . 1 . Full Trace Events . | . . . Feedback Events . | . . . Feedback Blocked . | . . . Robot Schematics Acquired . | . . . Robots Built . | . . . Authchips . | . . . Time . | . . . Total Robot Build Rating . | . . . Part Schematics Acquired . | . . . Parts Built . | . . . Authchips . | . . . Time . | . . . Total Part Build Rating . | . . . Parts Repaired . | . . . Time . | . . . Parts Recycled . | . . . Recycled Matter . | . . . Retrieved Matter 33 | . 33 . Retrieved Components 19 | . 19 . Parts Scanalyzed . | . . . Part Schematics Acquired . | . . . Parts Damaged . | . . . Bothacking | -11 -10 -10 ------------ Run | Yrd Mat Sub Used RIF Installer . | . . . Robots Hacked . | . . . Non-combat . | . . . Combat . | . . . Robot Hacks Applied . | . . . Relay Couplers Released . | . . . Fabnet Peak Effective % . | . . . Robots Rewired . | . . . Allies Hacked . | . . . Hacks Repelled . | . . . Allies | -11 -10 -10 -------- Run | Yrd Mat Sub Total Allies . | . . . Largest Group . | . . . Highest-Rated Group . | . . . Highest-Rated Ally . | . . . Total Orders . | . . . Ally Attacks . | . . . Total Damage . | . . . Kills . | . . . Allies Corrupted . | . . . Allies Melted . | . . . Intel | -11 -10 -10 ------- Run | Yrd Mat Sub Robot Analysis Total . | . . . Derelict Logs Recovered . | . . . Drone Launches . | . . . Drone Recoveries . | . . . Exploration | -11 -10 -10 ------------- Run | Yrd Mat Sub Turns Passed 4445 | 735 2549 1161 Spaces Moved 1997 | 376 1195 426 Core 1 | . 1 . Treads 1595 | . 1169 426 Legs 401 | 376 25 . Wheels . | . . . Hover . | . . . Flight . | . . . Fastest Speed 120 | 120 120 240 Average Speed 183 | 120 183 240 Slowest Speed 250 | 120 250 240 Overloaded Moves . | . . . Propulsion Burnouts . | . . . Robots Hopped . | . . . Cave-ins Triggered . | . . . Exploration Rate (%) 52 | 23 98 36 Regions Visited 2 Branch Regions 1 Pre-discovered Areas . | . . . Known Exits Taken . | . . . Unknown Exits Taken 2 | 1 1 . Scrap Searched 1 | . . 1 Spaces Dug 4 | . 4 . Terrain Destroyed 4 | . 4 . Melee . | . . . Projectile 4 | . 4 . AOE . | . . . Terrain Rammed . | . . . Walls Destroyed . | . . . Machines Disabled . | . . . Actions | -11 -10 -10 --------- Run | Yrd Mat Sub Total 2553 | 625 1426 502 Wait 352 | 228 104 20 Move 1995 | 375 1194 426 Hop . | . . . Pick Up 29 | 2 20 7 Fast Attach 5 | 2 2 1 Attach 4 | . . 4 Detach . | . . . Swap 28 | . 17 11 Drop 21 | 1 16 4 Fire 110 | 17 64 29 Melee . | . . . Ram . | . . . Kick . | . . . Crush 9 | . 9 . Escape Stasis . | . . . Rewire . | . . . Trap . | . . . Miscellaneous . | . . . Route ------- -11/Scrapyard -10/Materials (discovered 5 exits: [*Mat x3] / [*Min] / [*Sub]) -10/Subcaves History --------- Turn | Location | Event 10 | -11/Scrapyard | Discovered new exit (range 2) 736 | -11/Scrapyard | Entered Materials 737 | -10/Materials | Build established: Mutant 1188 | -10/Materials | Discovered new exit (range 16) 1678 | -10/Materials | Discovered new exit (range 16) 1894 | -10/Materials | Discovered new exit (range 16) 2758 | -10/Materials | Discovered new exit (range 12) 3252 | -10/Materials | Discovered new exit (range 10) 3285 | -10/Materials | Entered Subcaves 3993 | -10/Subcaves | Core integrity fell below 50% 4037 | -10/Subcaves | Lost 4 parts (2n2w) 4037 | -10/Subcaves | Core integrity fell below 20% 4446 | -10/Subcaves | Destroyed by FG-56M(R) with Subdweller Machine Gun Last Messages --------------- 04056_ Subatomizers dissect the Sub. Laser. 04058_ Acquired 34 matter. 04066_ Acquired Sub. Power Source. 04069_ Acquired Humpback. 04070_ Subatomizers dissect the Sub. Laser. 04072_ Dropped Imp. Terrain Scanner. 04073_ Acquired Sub. Laser. 04081_ Subatomizers dissect the Sub. Monowheel. 04146_ Subatomizers dissect the Imp. Terrain Scanner. 04179_ Dropped Assault Rifle. 04180_ Acquired Sub. Machine Gun. 04206_ Subatomizers dissect the Assault Rifle. 04257_ Dropped Assault Rifle. 04257_ Acquired Hvy. Riot Gun. 04300_ 3U-GQV(R): "WEHOME!" 04311_ 3U-GQV(R) destroyed. 04314_ Acquired 47 matter. 04424_ Acquired 11 matter. Map ----- +----------------------------------------------------+ | ?????????????????????????????????????????????????? | | ?????????????????????????????????????????????????? | | ?????????????????????????????????????????????????? | | ?????????????????????????????????????????????????? | | ?????????????????????????????????????????????????? | | ?????????????????????????????????????????????????? | | ?????????????????????????????????????????????????? | | ?????????????????????????????????????????????????? | | ?????????????????????????????????????????????????? | | ?????????????????????????????????????????????????? | | ?????????????????????????? ??????????????????????? | | ??????????????????? ????? ?????????????????????? | | ?????????????????# ???? ????????????????????? | | ?????????????????# ???? ????????????????????? | | ?????????????????# ???? ?????????????????????? | | ?????????????????# ??## ?????????????????????? | | ??????????????????" ?## ?????????????????????? | | ??????????????????? ## ??????????????????????? | | ???????????????????#% ??????????????????????? | | ???????????????????# #??????????????????????? | | ???????????????????# #??????????????????????? | | ???????????????????# ##?????????????????????? | | ???????????????????# #?????????????????????? | | ????????????????????# #?????????????????????? | | ?????????????????????# #?????????????????????? | | ??????????????????????# @ ##????????????????????? | | ??????????????????????# ##???????????????????? | | ?????????????????????## #???????????????????? | | ????????????????????## ### #?????????????????? | | ????????????????????# #??# #????????????????? | | ????????? ????????## ##?? #????????????????? | | ???????# #??????## #?? #????????????????? | | ???? ##???## #??? #????????????????? | | ???# ##?## #??? #????????????????? | | ???? #?# #??? #????????????????? | | ????# ###R #???? #????????????????? | | ????# R #????###????????????????? | | ????# ####???????????????????????? | | ????# ##?????????????????????????? | | ?##?# ##????????????????????????? | | ## ## #### ##???????????????????????? | | #???## ##??????????????????????? | | ##???## #??????????????????????? | | #????## #??????????????????????? | | ??# ##?### ####??????????????????????? | | ?## ### #?????????????????????????? | | ?# #?????????????????????????? | | ### [ # #?????????????????????????? | | ## ##????????????????????????? | | ##### #?#####??????????????????? | +----------------------------------------------------+ Best States ------------- Heat Dissipation 25 Energy Generation 10 Energy Capacity 250 Matter Stores 300 Matter Capacity 300 Sight Range 16 Terrain Scan Range 16 Terrain Scan Density 10 Armor Coverage 150 Evasion (%) 55 Recoil Reduction 2 Item Schematics ----------------- None Robot Schematics ------------------ None Fabricated ------------ Nothing Alien Tech Used ----------------- None Achievements -------------- None Challenges ------------ None Game ------ Seed PiercingCombatCarapace Manual? 0 Play Time 00:19:19 Cumulative 110.1 hours Start 2024.12.05 @ 19:09:06 End 2024.12.05 @ 19:33:22 Sessions 1 Manual Loads 0 Difficulty Rogue Special Mode None Game No. 152 Rogue 152 Adventurer 0 Explorer 0 Win Type - Total 0 Types 0/0/0/0/0/0/0/0/0 Lore% 59 Gallery% 49 Achievement% 35 Wizard Run 0 Options --------- Layout 1 ASCII 0 Keyboard 0 Movement Arrows Keybinds 0 Fullscreen 1 Font 24/Smallcaps Map View 50x40 Zoom Use 0% Tactical HUD 1 Map Filters NONE Filters NONE Steam 1 RUN: 022a0512-f76c-4b76-8f41-f7892b4608ce